Cogmind - Beta 16 @@@ ROGUE MODE // 2026.01.05 @ 20:30:39 Player: jam Result: Destroyed by D-53 Grenadier with Mini Grenade Launcher Performance ------------- Evolutions (1) 500 Regions Visited (4) 800 Robots Destroyed (30) 150 Value Destroyed (482) 482 Prototype IDs (1) 20 Alien Tech Used (0) 0 Bonus (0) 0 TOTAL SCORE: 1952 Bonus ------- None Cogmind --------- Core Integrity 0/400 Matter 284/300 Energy 78/125 System Corruption 0% Temperature Cool (7) Movement Rolling (80) Location -9/Mines Parts ------- > --- POWER (1) -------- Light Ion Engine > --- PROPULSION (3) --- Wheel Wheel > --- UTILITY (3) ------ Large Storage Unit Weight Redist. System Targeting Computer > --- WEAPON (2) ------- Beam Cannon > --- INVENTORY (15) --- Wheel Large Storage Unit Targeting Computer Propulsion Shielding Light Armor Plating Medium Armor Plating Medium Armor Plating Medium Armor Plating Medium Armor Plating Hacking Suite Maul Mining Claw Peak State ------------ > --- POWER ------------ Ion Engine > --- PROPULSION ------- Aluminum Leg Aluminum Leg Aluminum Leg > --- UTILITY ---------- Heat Sink Large Storage Unit Core Shielding > --- WEAPON ----------- EM Shotgun Plasma Flamer > --- INVENTORY -------- Light Ion Engine Light Treads Large Storage Unit Targeting Computer Core Shielding Propulsion Shielding Hacking Suite Assault Rifle Grenade Launcher [Rating: 15] Favorites ----------- Power Light Ion Engine Engine Light Ion Engine Propulsion Light Treads Treads Light Treads Leg Aluminum Leg Wheel Wheel Utility Core Shielding Device Weight Redist. System Storage Small Storage Unit Processor Targeting Computer Protection Core Shielding Weapon Assault Rifle Energy Gun EM Shotgun Energy Cannon Beam Cannon Ballistic Gun Assault Rifle Launcher Grenade Launcher Special Weapon Plasma Flamer Impact Weapon Maul Slashing Weapon Mining Claw Build | -11 -10 -10 -9 -9 ------- Run | Yrd Mat Min Mat Min Slots Evolved 2 | . . . 2 . Power . | . . . . . Propulsion 1 | . . . 1 . Utility 1 | . . . 1 . Weapon . | . . . . . Parts Attached 32 | 7 2 1 16 6 Power 4 | 1 . . 2 1 Engine 4 | 1 . . 2 1 Core . | . . . . . Reactor . | . . . . . Propulsion 9 | 2 . . 4 3 Treads 3 | 2 . . 1 . Leg 3 | . . . 3 . Wheel 3 | . . . . 3 Hover . | . . . . . Flight . | . . . . . Utility 8 | 2 1 . 4 1 Device 3 | 1 . . 1 1 Storage 2 | 1 . . 1 . Processor 1 | . . . 1 . Hackware . | . . . . . Protection 2 | . 1 . 1 . Artifact . | . . . . . Weapon 11 | 2 1 1 6 1 Energy Gun 4 | 1 1 . 2 . Energy Cannon 1 | . . . 1 . Ballistic Gun 1 | 1 . . . . Ballistic Cannon . | . . . . . Launcher 2 | . . . 1 1 Special Weapon 1 | . . 1 . . Impact Weapon 1 | . . . 1 . Slashing Weapon 1 | . . . 1 . Piercing Weapon . | . . . . . Special Melee Weapon . | . . . . . Unidentified Prototypes 1 | . . . 1 . Parts Lost 17 | . . . 14 3 Power 3 | . . . 2 1 Propulsion 5 | . . . 4 1 Utility 2 | . . . 2 . Weapon 7 | . . . 6 1 Highest Loss Streak 13 | . . . 13 3 To Critical Strikes . | . . . . . Average Backups 7 | 2 7 8 7 11 Power . | . . . . . Propulsion 1 | 1 2 1 . . Utility 4 | . 2 4 4 9 Weapon 1 | . 2 2 1 1 Tool/Special . | . . . . . Unused Backups 13 | . 6 1 . 6 Power 2 | . 2 . . . Propulsion 2 | . . 1 . 1 Utility 6 | . 1 . . 5 Weapon 3 | . 3 . . . Tool/Special . | . . . . . Average Slot Usage (%) 87 | . 100 100 75 84 Engine 11 | . 14 14 8 11 Treads 17 | . 28 28 11 7 Leg 2 | . . . 6 . Wheel 2 | . . . . 11 Device 4 | . 4 . 4 10 Storage 12 | . 14 14 11 11 Processor 3 | . . . 4 11 Protection 9 | . 10 14 10 . Energy Gun 7 | . 14 8 5 . Energy Cannon 2 | . . . 1 11 Ballistic Gun 7 | . 14 14 4 . Special Weapon 1 | . . 5 3 . Impact Weapon 2 | . . . 2 9 Peak Build Rating 15 | 9 11 12 15 13 Average Rating 9 | 6 8 10 9 10 On Entrance 7 | . 9 9 12 8 Avg Prop Armor Cover (%) 13 | . . . . 13 Naked Turns . | . . . . . Heaviest Build 33 | 13 14 14 33 29 Greatest Support 40 | 40 40 40 40 36 Greatest Overweight (x) 8 | . . . 8 1 Average Overweight (x) . | . . . . . Largest Inventory Capacity 15 | 8 8 8 15 15 Average Capacity 10 | 7 8 8 13 15 Most Carried 13 | 5 8 8 11 13 Average Carried 7 | 2 7 8 7 11 Final Capacity 15 | 8 8 8 15 15 Final Carried 12 | 5 8 8 11 12 Class Distribution -------------------- 92% | Mutant 7% | Scavenger-Mutant Dominant Class ---------------- Mutant | -10/Materials Mutant | -10/Mines Mutant | -9/Materials Mutant | -9/Mines Resources | -11 -10 -10 -9 -9 ----------- Run | Yrd Mat Min Mat Min Matter Collected 683 | 283 53 42 255 50 Remotely . | . . . . . Salvage Created 1012 | 135 134 . 610 133 Parts 52 | 10 7 . 22 13 Haulers Intercepted 1 | . . . 1 . Recyclers Shooed 4 | 1 1 . 2 . Parts Field Recycled . | . . . . . Retrieved Matter . | . . . . . Parts Self-Destructed . | . . . . . Prevented . | . . . . . Parts Restored . | . . . . . Kills | -11 -10 -10 -9 -9 ------- Run | Yrd Mat Min Mat Min Combat Hostiles Destroyed 12 | . 2 . 10 . Melee 1 | . . . 1 . Guns 8 | . 2 . 6 . Cannons 1 | . . . 1 . Classes Destroyed 10 | 2 2 . 5 1 Worker 5 | . . . 3 2 Builder 2 | . . . . 2 Tunneler 4 | 2 . . . 2 Hauler 1 | . . . 1 . Recycler 3 | 1 . . 2 . Operator 2 | . 2 . . . Watcher 1 | . . . 1 . Swarmer 3 | . . . 3 . Grunt 7 | . 2 . 5 . Sentry 2 | . . . 2 . Best Kill Streak 5 | 3 2 . 5 2 Combat Bots Only 4 | . 2 . 4 . Max Kills in Single Turn 1 | 1 1 . 1 1 Gunslinging . | . . . . . Exploded . | . . . . . Melee 1 | . . . 1 . Uniques/NPCs Destroyed . | . . . . . Combat | -11 -10 -10 -9 -9 -------- Run | Yrd Mat Min Mat Min Hostile Shots Fired 190 | . 6 . 176 8 Missed 53 | . 1 . 51 1 Hits 137 | . 5 . 125 7 Projectile 137 | . 5 . 125 7 AOE 7 | . . . . 7 Critical Strikes 4 | . . . 4 . Actively Blocked 1 | . . . 1 . Damage Taken 1864 | . 56 . 1483 325 Core 439 | . . . 334 105 Absorbed by Shields . | . . . . . Redirected to Shielding 67 | . . . 67 . Core Remaining (%) 100 | 100 . 100 . . Volleys Fired 74 | 6 9 . 46 13 Largest 2 | 2 2 . 2 2 Hottest 145 | 70 65 . 145 93 Shots Fired 120 | 12 18 1 75 14 Gun 86 | 12 18 1 55 . Cannon 17 | . . . 4 13 Launcher 2 | . . . 1 1 Special 15 | . . . 15 . Kinetic 47 | 6 10 1 30 . Thermal 38 | 6 . . 19 13 Explosive 2 | . . . 1 1 Electromagnetic 33 | . 8 . 25 . Robot Hit Streak 14 | 5 5 . 9 14 Robot Miss Streak 5 | 2 2 . 5 1 Penetration Max . | . . . . . Secondary Targets 2 | . 1 . 1 . Max Gunslinging Chain 1 | . 1 . 1 . Shots Hit Robots 89 | 8 12 . 57 12 Core Hits 43 | 3 9 . 23 8 Critical Kills 1 | . . . 1 . Critical Parts Destroyed . | . . . . . Critical Strikes 4 | . . . 4 . Burn 3 | . . . 3 . Smash 1 | . . . 1 . Melee Attacks 10 | . . . 10 . Impact 9 | . . . 9 . Slashing 1 | . . . 1 . Piercing . | . . . . . Sneak Attacks 4 | . . . 4 . Combat Hostiles . | . . . . . Follow-up Attacks . | . . . . . Damage Inflicted 1668 | 103 209 . 1101 255 Guns 773 | 101 209 . 463 . Cannons 244 | . . . 35 209 Explosions 95 | . . . 49 46 Melee 405 | . . . 405 . Ramming 8 | 2 . . 6 . Kinetic 346 | 51 90 . 205 . Thermal 437 | 50 . . 178 209 Explosive 95 | . . . 49 46 Electromagnetic 377 | . 119 . 258 . Impact 361 | . . . 361 . Slashing 44 | . . . 44 . Piercing . | . . . . . Highest Corruption 3 | . 3 3 . . Average Corruption 2 | . 2 3 . . Corruption Purged . | . . . . . Corruption Blocked . | . . . . . Effects 11 | . 9 2 . . Message Errors 2 | . 2 . . . Matter Fused 4 | . 3 1 . . Heat Flow Errors 1 | . 1 . . . Data Loss (minor) 2 | . 2 . . . Misfires 2 | . 1 1 . . Overload Shots . | . . . . . Overflow Damage 160 | . . . 160 . Projectiles . | . . . . . Explosions . | . . . . . Melee 160 | . . . 160 . Knockbacks 2 | . . . 2 . Impact 2 | . . . 2 . Kinetic . | . . . . . Secondary . | . . . . . Self-Inflicted Damage 13 | . . . 13 . Shots 1 | . . . 1 . Rammed 1 | 1 . . . . Targets Rammed 2 | 1 . . 1 . Kicked 1 | . . . 1 . Crushed . | . . . . . Highest Temperature 407 | 36 244 . 407 42 Average Temperature 75 | 16 51 . 120 20 Received Heat Transfer 594 | . 30 . 564 . Effects 2 | . . . 2 . Shutdowns 1 | . . . 1 . Damage (minor) 1 | . . . 1 . Siege Activations . | . . . . . Martial Activations . | . . . . . Shielding Activations . | . . . . . Robots Disrupted . | . . . . . Combat Hostiles . | . . . . . Robots Corrupted 2 | . . . 2 . Combat Hostiles . | . . . . . Parts Fried 4 | . 2 . 2 . Impact Corruptions 5 | . . . 5 . Robots Melted 2 | . . . 2 . Combat Hostiles 2 | . . . 2 . Parts Melted 4 | . . . 4 . Heat Transferred 2026 | 148 . . 1434 444 Parts Sabotaged . | . . . . . Parts Stolen . | . . . . . Parts Stripped . | . . . . . Power Chain Reactions . | . . . . . Alert | -11 -10 -10 -9 -9 ------- Run | Yrd Mat Min Mat Min Maximum Alert Level . | . . . . . Low Security (%) 100 | 100 100 100 100 100 Level 1 . | . . . . . Level 2 . | . . . . . Level 3 . | . . . . . Level 4 . | . . . . . Level 5 . | . . . . . High Security . | . . . . . Max Security . | . . . . . Peak Influence 90 | 10 50 . 90 10 Initial 1 | . . . . 1 Average 8 | 1 4 . 20 . Influence Increases 442 | 15 67 . 317 43 Destroy 0b10 Robot/C 240 | . 40 . 200 . Destroy 0b10 Robot/NC 95 | 15 10 . 40 30 Destroy Leader 64 | . 10 . 54 . Successful Hack 7 | . 7 . . . Destroy Structure 21 | . . . 8 13 Lose Combat Pursuer 15 | . . . 15 . Influence Decreases 442 | 15 67 . 312 48 Entered New Map 4 | . . . . 4 Time Decay 321 | 15 67 . 203 36 Lost Part 117 | . . . 109 8 Squads Dispatched 2 | . 1 . 1 . Investigation . | . . . . . Extermination . | . . . . . Reinforcement 2 | . 1 . 1 . Assault . | . . . . . Garrison . | . . . . . Intercept . | . . . . . Searches Triggered . | . . . . . Construction Impeded . | . . . . . Haulers Reinforced . | . . . . . Active Scanning Responses . | . . . . . Cargo Convoy Interrupts . | . . . . . Stealth | -11 -10 -10 -9 -9 --------- Run | Yrd Mat Min Mat Min Distress Signals . | . . . . . Communications Jammed . | . . . . . Distress Signals . | . . . . . Times Spotted 24 | . 6 . 16 2 Peak Tracking Total 4 | . 2 . 4 2 Tactical Retreats 1 | . . . 1 . Traps | -11 -10 -10 -9 -9 ------- Run | Yrd Mat Min Mat Min Traps Triggered 2 | . 2 . . . Indirectly . | . . . . . Trap Hack Attempts . | . . . . . Triggered . | . . . . . Disarmed . | . . . . . Reprogrammed . | . . . . . Reused . | . . . . . Traps Extracted . | . . . . . Installed . | . . . . . Triggered . | . . . . . Machines | -11 -10 -10 -9 -9 ---------- Run | Yrd Mat Min Mat Min Machines Disabled . | . . . . . Max in Single Turn . | . . . . . Machines Repaired . | . . . . . Machines Dismantled . | . . . . . Machines Sabotaged . | . . . . . Overloaded Fab Kills . | . . . . . Hacking | -11 -10 -10 -9 -9 --------- Run | Yrd Mat Min Mat Min Machines Accessed 3 | . 3 . . . Terminals 2 | . 2 . . . Fabricators . | . . . . . Repair Stations . | . . . . . Recycling Units 1 | . 1 . . . Scanalyzers . | . . . . . Garrison Access . | . . . . . Total Hacks 5 | . 5 . . . Successful 2 | . 2 . . . Failed 3 | . 3 . . . Catastrophic 2 | . 2 . . . Database Lockouts . | . . . . . Manual 4 | . 4 . . . Terminals 4 | . 4 . . . Fabricators . | . . . . . Repair Stations . | . . . . . Recycling Units 1 | . 1 . . . Scanalyzers . | . . . . . Garrison Access . | . . . . . Terminal Hacks 1 | . 1 . . . Branch Access Points 1 | . 1 . . . Fabricator Hacks . | . . . . . Repair Station Hacks . | . . . . . Recycling Unit Hacks 1 | . 1 . . . Report Inventory 1 | . 1 . . . Scanalyzer . | . . . . . Garrison Access Hacks . | . . . . . Unauthorized Hacks . | . . . . . Terminals . | . . . . . Fabricators . | . . . . . Repair Stations . | . . . . . Recycling Units . | . . . . . Scanalyzers . | . . . . . Garrison Access . | . . . . . Data Cores Recovered 1 | . 1 . . . Used . | . . . . . Hacking Detections 3 | . 3 . . . Full Trace Events . | . . . . . Feedback Events . | . . . . . Feedback Blocked . | . . . . . Robot Schematics Acquired . | . . . . . Robots Built . | . . . . . Authchips . | . . . . . Time . | . . . . . Total Robot Build Rating . | . . . . . Part Schematics Acquired . | . . . . . Parts Built . | . . . . . Authchips . | . . . . . Time . | . . . . . Total Part Build Rating . | . . . . . Part Studies Acquired . | . . . . . Parts Repaired . | . . . . . Time . | . . . . . Parts Recycled . | . . . . . Recycled Matter . | . . . . . Retrieved Matter . | . . . . . Retrieved Components . | . . . . . Parts Scanalyzed . | . . . . . Part Schematics Acquired . | . . . . . Parts Damaged . | . . . . . Bothacking | -11 -10 -10 -9 -9 ------------ Run | Yrd Mat Min Mat Min Used RIF Installer . | . . . . . Robots Hacked . | . . . . . Non-combat . | . . . . . Combat . | . . . . . Robot Hacks Applied . | . . . . . Relay Couplers Released . | . . . . . Fabnet Peak Effective % . | . . . . . Robots Rewired . | . . . . . Allies Hacked . | . . . . . Hacks Repelled . | . . . . . Allies | -11 -10 -10 -9 -9 -------- Run | Yrd Mat Min Mat Min Total Allies . | . . . . . Largest Group . | . . . . . Highest-Rated Group . | . . . . . Highest-Rated Ally . | . . . . . Total Orders . | . . . . . Ally Attacks . | . . . . . Total Damage . | . . . . . Kills . | . . . . . Allies Corrupted . | . . . . . Allies Melted . | . . . . . Intel | -11 -10 -10 -9 -9 ------- Run | Yrd Mat Min Mat Min Active Infowar (turns) 196 | 52 144 . . . Terrain 196 | 52 144 . . . Robot Analysis Total . | . . . . . Derelict Logs Recovered . | . . . . . Drone Launches . | . . . . . Drone Recoveries . | . . . . . Exploration | -11 -10 -10 -9 -9 ------------- Run | Yrd Mat Min Mat Min Turns Passed 1909 | 186 545 197 676 305 Spaces Moved 962 | 100 315 122 237 188 Core 20 | 7 . . 13 . Treads 774 | 93 315 122 175 69 Legs 49 | . . . 49 . Wheels 119 | . . . . 119 Hover . | . . . . . Flight . | . . . . . Fastest Speed 50 | 50 160 160 160 80 Average Speed 165 | 152 160 160 200 140 Slowest Speed 450 | 160 160 160 450 240 Overloaded Moves . | . . . . . Propulsion Burnouts . | . . . . . Robots Hopped . | . . . . . Potential Cave-ins . | . . . . . Cave-ins Triggered . | . . . . . Exploration Rate (%) 27 | 5 41 34 25 33 Regions Visited 4 Branch Regions 2 Pre-discovered Areas . | . . . . . Known Exits Taken 1 | . 1 . . . Unknown Exits Taken 3 | 1 . 1 1 . Scrap Searched 3 | . . 2 . 1 Spaces Dug . | . . . . . Terrain Destroyed 21 | . . . 7 14 Melee . | . . . . . Projectile . | . . . . . AOE 21 | . . . 7 14 Terrain Rammed . | . . . . . Walls Destroyed . | . . . . . Machines Disabled . | . . . . . Actions | -11 -10 -10 -9 -9 --------- Run | Yrd Mat Min Mat Min Total 1128 | 118 342 124 330 214 Wait . | . . . . . Move 958 | 99 314 121 236 188 Hop . | . . . . . Pick Up 26 | 5 9 1 8 3 Fast Attach 21 | 7 2 . 9 3 Attach 10 | . . . 7 3 Detach 2 | . . . 1 1 Swap 9 | . . 1 7 1 Drop 13 | . 8 1 2 2 Fire 74 | 6 9 . 46 13 Melee 9 | . . . 9 . Ram . | . . . . . Kick 1 | . . . 1 . Crush 1 | 1 . . . . Escape Stasis . | . . . . . Rewire 4 | . . . 4 . Trap . | . . . . . Miscellaneous . | . . . . . Route ------- -11/Scrapyard -10/Materials (discovered 2 exits: [*Mat] / *Min) -10/Mines -9/Materials -9/Mines History --------- Turn | Location | Event 33 | -11/Scrapyard | Discovered new exit (range 16) 187 | -11/Scrapyard | Entered Materials 304 | -10/Materials | Build established: Mutant 543 | -10/Materials | Identified exit to Mines 698 | -10/Materials | Discovered new exit (range 11) 732 | -10/Materials | Entered Mines 747 | -10/Mines | Met a Derelict bent on vengeance 824 | -10/Mines | A weapon hastily lodged in a ceiling crevice suddenly fell to the ground 900 | -10/Mines | Discovered new exit (range 10) 929 | -10/Mines | Entered Materials 929 | -9/Materials | Evolved 2 slots: Propulsion x1, Utility x1 1352 | -9/Materials | Core integrity fell below 50% 1403 | -9/Materials | Core integrity fell below 20% 1421 | -9/Materials | Lost 13 parts (2p4n2u5w) 1539 | -9/Materials | Discovered new exit (range 10) 1605 | -9/Materials | Entered Mines 1650 | -9/Mines | Received a Rocket Launcher from a helpful Derelict 1871 | -9/Mines | Assembled infested the area 1910 | -9/Mines | Destroyed by D-53 Grenadier with Mini Grenade Launcher Last Messages --------------- 01817_ Dropped Lgt. Treads. 01819_ R-06 Scavenger collects Terrain Scanner. 01822_ Acquired Wheel. 01824_ R-06 Scavenger collects Lgt. Treads. 01829_ R-06 Scavenger collects Welding Torch. 01842_ K-01 Serf collects debris. 01853_ K-01 Serf destroyed. 01857_ Acquired Wheel. 01858_ Acquired 20 matter. 01859_ Acquired Lgt. Ion Engine. 01871_ ALERT: Infestation in the mines, dispatching Demolisher response squad. 01904_ C-45 Heavy ARC bursts open, deploying its payload. 01904_ D-53 Grenadier unfolds itself. 01904_ U-05 Engineer destroyed. 01906_ The unstable cave ceiling collapses. 01906_ Lgt. Ion Engine destroyed. 01908_ Rocket Launcher destroyed. 01908_ Wheel destroyed. 01909_ The unstable cave ceiling collapses. Map ----- +----------------------------------------------------+ | ??????????????????????????????? ######???## | | ?????????????????????????????????# ##???# # | | ??????????????????????????????????# ##??# # | | ???????????????????????????????????# #### # | | ???????????????????????????????????## ! | | ????????????????????????????????????## %! | | ?????????????????????????????????????# ####### | | ?????????????????????????????????????# ##?????? | | ?????????????????????????????????????# #??????? | | ????????????????????????????????????## #???????# | | ???????????????????????????????????## ##??????? | | ???????????????????????????????????# ####???? | | ???????????????????????????????????# ##??? | | ??????????????????????????????????## #??? | | ??????????????????#??????????????##% ##??? | | ?????????????????? ??????????##### ##???? | | ?????????????????? ????????### ###????? | | ?????????????????? ???????## ##??????? | | ?????????????????? ???##### #???????? | | ?????????????????# ??## # # ## #???????? | | ????????????????? ### ## ### ## #???????? | | ?????????????????# u % ## #?##### #???????? | | ?????????????????# #?# d # #????## ##??????? | | ?????????????????# ### d # #???## ##?????? | | ?????????????????# ## ##### % #?????? | | ?????????????????# ## @ #?????? | | ?????????????????# ### ##?????? | | ?????????????????# ## # ###### ##??????? | | ?????????????????# #????# ##???????? | | ?????????????????##### ##???## #????????? | | ?????????????????????# ###??## #????????? | | ?????????????????????# ##?# #????????? | | ?????????????????????# ### #????????? | | ?????????????????????# ##????????? | | ?????????????????????# # ## ##?????????? | | ???????????????????######## ##?????????? | | ??????????????????## #?????????? | | ?????????????????## ######????? | | ?????????????????# % #????? | | ?????????????????# #### ###??? | | ?????????????????## ##??####### #??? | | ??????????????????### """" ##?????????### #??? | | ????????????????????## """" #????????????? #??? | | ?????????????????????# """" #??????????????#??? | | ????????????????????# ##?????????????????? | | ????????????????????# ## ##??????????????????? | | ????????????????????# #######???????????????????? | | ????????????????????###??????????????????????????? | | ?????????????????????????????????????????????????? | | ?????????????????????????????????????????????????? | +----------------------------------------------------+ Best States ------------- Heat Dissipation 38 Energy Generation 10 Energy Capacity 250 Matter Stores 300 Matter Capacity 300 Sight Range 16 Terrain Scan Range 16 Terrain Scan Density 10 Additional Mass Support 6 Core Shielding 20 Evasion (%) 44 Targeting Accuracy 5 Recoil Reduction 2 Item Schematics ----------------- None Robot Schematics ------------------ None Fabricated ------------ Nothing Repaired ---------- Nothing Studied --------- None Alien Tech Used ----------------- None Achievements -------------- None Challenges ------------ None Game ------ Seed HugeReflexActivator Manual? 0 Play Time 00:18:44 Cumulative 14.4 hours Start 2026.01.05 @ 19:18:48 End 2026.01.05 @ 20:30:39 Sessions 1 Manual Loads 0 Difficulty Rogue Special Mode None Game No. 29 Rogue 26 Adventurer 3 Explorer 0 Win Type - Total 0 Types 0/0/0/0/0/0/0/0/0/0 Lore% 9 Gallery% 20 Achievement% 14 Wizard Run 0 Options --------- Layout 0 ASCII 0 Keyboard 0 Movement Mouse Keybinds 0 Fullscreen 1 Font 18/SmallcapsGlow Map View 65x51 Zoom Use 0% Tactical HUD 1 Map Filters NONE Filters NONE Steam 1 RUN: 9e4b6015-f91b-4b09-b103-3cdf7d1cd84a